fUST/lending_fUST_20250818
["ID","MTS","AMOUNT","RATE_DAILY","PERIOD"]
[379947802,1755447043084,-506.84,0.00019178,2]
[379947804,1755447043093,-4194.06,0.00019178,2]
[379947806,1755447043103,-391.0872167,0.00019178,2]
[379947808,1755447043112,-460.0,0.00019178,2]
[379947810,1755447043121,-460.0,0.00019178,2]
[379947811,1755447043131,-151.0,0.00019178,2]
[379947812,1755447043142,-182.827039,0.00019178,2]
[379947813,1755447043151,-480.0,0.00019178,2]
[379947814,1755447043160,-460.0,0.00019178,2]
[379947815,1755447043170,-465.75480018,0.00019178,2]
[379947816,1755447043180,-480.0,0.00019178,2]
[379947817,1755447043189,-480.0,0.00019178,2]
[379947818,1755447043199,-162.296285,0.00019178,2]
[379947819,1755447043208,-521.68937955,0.00019178,2]
[379947820,1755447043218,-162.296285,0.00019178,2]
[379947821,1755447043227,-462.83163684,0.00019178,2]
[379947822,1755447043237,-162.296285,0.00019178,2]
[379947823,1755447043247,-162.296285,0.00019178,2]
[379947824,1755447043256,-480.0,0.00019178,2]
[379947825,1755447043266,-461.75102285,0.00019178,2]
[379947826,1755447043275,-460.0,0.00019178,2]
[379947827,1755447043285,-469.45198186,0.00019178,2]
[379947828,1755447043295,-465.1367722,0.00019178,2]
[379947829,1755447043304,-151.0,0.00019178,2]
[379947830,1755447043314,-460.0,0.00019178,2]
[379947831,1755447043323,-500.0,0.00019178,2]
[379947832,1755447043333,-460.0,0.00019178,2]
[379947833,1755447043342,-500.0,0.00019178,2]
[379947834,1755447043351,-500.0,0.00019178,2]
[379947835,1755447043360,-151.0,0.00019178,2]
[379947836,1755447043370,-151.0,0.00019178,2]
[379947837,1755447043379,-151.0,0.00019178,2]
[379947838,1755447043389,-460.0,0.00019178,2]
[379947839,1755447043398,-221.74219092,0.00019178,2]
[379947840,1755447043408,-151.0,0.00019178,2]
[379947841,1755447043418,-258.06302,0.00019178,2]
[379947842,1755447043427,-480.0,0.00019178,2]
[379947843,1755447043436,-480.0,0.00019178,2]
[379947844,1755447043446,-465.32756027,0.00019178,2]
[379947845,1755447043455,-192.302906,0.00019178,2]
[379947846,1755447043465,-460.0,0.00019178,2]
[379947847,1755447043474,-192.302906,0.00019178,2]
[379947848,1755447043484,-153.26290523,0.00019178,2]
[379947849,1755447043493,-462.77364927,0.00019178,2]
[379947850,1755447043502,-460.0,0.00019178,2]
[379947851,1755447043512,-192.302906,0.00019178,2]
[379947852,1755447043521,-192.302906,0.00019178,2]
[379947853,1755447043531,-151.0,0.00019178,2]
[379947854,1755447043541,-151.0,0.00019178,2]
[379947855,1755447043550,-480.0,0.00019178,2]
[379947856,1755447043560,-151.0,0.00019178,2]
[379947857,1755447043570,-460.0,0.00019178,2]
[379947858,1755447043579,-460.0,0.00019178,2]
[379947859,1755447043589,-225.638699,0.00019178,2]
[379947860,1755447043598,-225.638699,0.00019178,2]
[379947861,1755447043607,-196.95185,0.00019178,2]
[379947862,1755447043617,-196.95185,0.00019178,2]
[379947863,1755447043626,-460.0,0.00019178,2]
[379947864,1755447043635,-480.0,0.00019178,2]
[379947865,1755447043645,-151.0,0.00019178,2]
[379947866,1755447043654,-151.0,0.00019178,2]
[379947867,1755447043664,-196.95185,0.00019178,2]
[379947868,1755447043673,-196.95185,0.00019178,2]
[379947869,1755447043682,-480.0,0.00019178,2]
[379947870,1755447043691,-151.0,0.00019178,2]
[379947871,1755447043702,-151.0,0.00019178,2]
[379947872,1755447043712,-525.46578648,0.00019178,2]
[379947873,1755447043722,-460.0,0.00019178,2]
[379947874,1755447043731,-461.00623345,0.00019178,2]
[379947875,1755447043741,-480.0,0.00019178,2]
[379947876,1755447043751,-225.638699,0.00019178,2]
[379947877,1755447043761,-225.638699,0.00019178,2]
[379947878,1755447043771,-460.0,0.00019178,2]
[379947879,1755447043780,-461.74364525,0.00019178,2]
[379947880,1755447043790,-460.0,0.00019178,2]
[379947881,1755447043799,-461.95569121,0.00019178,2]
[379947882,1755447043808,-464.90814462,0.00019178,2]
[379947883,1755447043818,-479.35328352,0.00019178,2]
[379947884,1755447043828,-460.0,0.00019178,2]
[379947885,1755447043837,-460.0,0.00019178,2]
[379947886,1755447043847,-463.32879581,0.00019178,2]
[379947887,1755447043856,-364.57313604,0.00019178,2]
[379947888,1755447043865,-480.0,0.00019178,2]
[379947889,1755447043875,-460.20192978,0.00019178,2]
[379947890,1755447043885,-604.55744259,0.00019178,2]
[379947891,1755447043894,-462.07847331,0.00019178,2]
[379947892,1755447043903,-460.0,0.00019178,2]
[379947893,1755447043913,-460.0,0.00019178,2]
[379947894,1755447043922,-557.83,0.00019178,2]
[379947895,1755447043931,-480.0,0.00019178,2]
[379947896,1755447043942,-460.0,0.00019178,2]
[379947897,1755447043955,-460.0,0.00019178,2]
[379947898,1755447043965,-460.0,0.00019178,2]
[379947899,1755447043974,-2707.54,0.00019178,2]
[379947900,1755447043984,-575.72240726,0.00019178,2]
[379947901,1755447043995,-999.75,0.00019178,2]
[379947902,1755447044005,-460.0,0.00019178,2]
[379947903,1755447044015,-461.10237328,0.00019178,2]
[379947904,1755447044025,-460.0,0.00019178,2]
[379947905,1755447044035,-464.90674422,0.00019178,2]
[379947906,1755447044044,-460.0,0.00019178,2]
[379947907,1755447044053,-480.0,0.00019178,2]
[379947908,1755447044063,-460.0,0.00019178,2]
[379947909,1755447044073,-151.0,0.00019178,2]
[379947910,1755447044082,-470.42618697,0.00019178,2]
[379947911,1755447044092,-151.0,0.00019178,2]
[379947912,1755447044102,-464.74788078,0.00019178,2]
[379947913,1755447044264,-460.0,0.00019178,2]
[379947914,1755447044275,-460.0,0.00019178,2]
[379947915,1755447044284,-588.85,0.00019178,2]
[379947916,1755447044294,-151.0,0.00019178,2]
[379947917,1755447044303,-460.0,0.00019178,2]
[379947918,1755447044313,-151.0,0.00019178,2]
[379947919,1755447044322,-460.0,0.00019178,2]
[379947920,1755447044332,-460.0,0.00019178,2]
[379947921,1755447044343,-470.12470226,0.00019178,2]
[379947922,1755447044353,-464.96018152,0.00019178,2]
[379947923,1755447044362,-460.0,0.00019178,2]
[379947924,1755447044372,-460.0,0.00019178,2]
[379947925,1755447044382,-512.61,0.00019178,2]
[379947926,1755447044391,-151.0,0.00019178,2]
[379947927,1755447044401,-461.78878274,0.00019178,2]
[379947928,1755447044410,-151.0,0.00019178,2]
[379947929,1755447044420,-460.0,0.00019178,2]
[379947930,1755447044429,-151.0,0.00019178,2]
[379947931,1755447044439,-460.0,0.00019178,2]
[379947932,1755447044449,-2221.98,0.00019178,2]
[379947933,1755447044459,-500.0,0.00019178,2]
[379947934,1755447044468,-151.0,0.00019178,2]
[379947935,1755447044478,-151.27677427,0.00019178,2]
[379947937,1755447044487,-460.0,0.00019178,2]
[379947938,1755447044496,-460.0,0.00019178,2]
[379947940,1755447044506,-151.0,0.00019178,2]
[379947941,1755447044515,-536.84278828,0.00019178,2]
[379947942,1755447044525,-460.0,0.00019178,2]
[379947943,1755447044534,-462.58521817,0.00019178,2]
[379947944,1755447044543,-465.85646917,0.00019178,2]
[379947945,1755447044553,-460.0,0.00019178,2]
[379947948,1755447044562,-462.20809951,0.00019178,2]
[379947951,1755447044572,-480.0,0.00019178,2]
[379947954,1755447044581,-460.0,0.00019178,2]
[379947955,1755447044591,-463.38194712,0.00019178,2]
[379947956,1755447044600,-480.0,0.00019178,2]
[379947957,1755447044610,-460.0,0.00019178,2]
[379947958,1755447044619,-1059.03,0.00019178,2]
[379947960,1755447044629,-460.0,0.00019178,2]
[379947961,1755447044639,-460.0,0.00019178,2]
[379947963,1755447044648,-460.0,0.00019178,2]
[379947965,1755447044658,-460.0,0.00019178,2]
[379947967,1755447044667,-460.0,0.00019178,2]
[379947969,1755447044677,-460.0,0.00019178,2]
[379947970,1755447044686,-460.0,0.00019178,2]
[379947971,1755447044696,-460.0,0.00019178,2]
[379947972,1755447044705,-460.0,0.00019178,2]
[379947973,1755447044715,-460.0,0.00019178,2]
[379947974,1755447044725,-180.88608371,0.00019178,2]
[379947975,1755447044734,-461.29689264,0.00019178,2]
[379947976,1755447044743,-460.0,0.00019178,2]
[379947977,1755447044753,-266.524174,0.00019178,2]
[379947978,1755447044762,-460.0,0.00019178,2]
[379947979,1755447044772,-480.0,0.00019178,2]
[379947980,1755447044781,-266.524174,0.00019178,2]
[379947981,1755447044791,-460.0,0.00019178,2]
[379947982,1755447044800,-480.0,0.00019178,2]
[379947983,1755447044810,-460.0,0.00019178,2]
[379947984,1755447044819,-996.4,0.00019178,2]
[379947985,1755447044828,-460.0,0.00019178,2]
[379947986,1755447044838,-151.0,0.00019178,2]
[379947987,1755447044847,-460.0,0.00019178,2]
[379947988,1755447044857,-460.0,0.00019178,2]
[379947989,1755447044866,-480.0,0.00019178,2]
[379947990,1755447044875,-480.0,0.00019178,2]
[379947991,1755447044885,-480.0,0.00019178,2]
[379947992,1755447044895,-460.0,0.00019178,2]
[379947993,1755447044904,-480.0,0.00019178,2]
[379947994,1755447044914,-151.0,0.00019178,2]
[379947995,1755447044924,-460.0,0.00019178,2]
[379947996,1755447044933,-480.0,0.00019178,2]
[379947997,1755447044946,-480.0,0.00019178,2]
[379947998,1755447044957,-480.0,0.00019178,2]
[379947999,1755447044966,-462.91874358,0.00019178,2]
[379948000,1755447044976,-464.6133838,0.00019178,2]
[379948001,1755447044987,-460.0,0.00019178,2]
[379948002,1755447044997,-460.0,0.00019178,2]
[379948003,1755447045007,-480.0,0.00019178,2]
[379948004,1755447045017,-460.96887652,0.00019178,2]
[379948005,1755447045027,-460.0,0.00019178,2]
[379948006,1755447045037,-1396.993208,0.00019178,2]
[379948007,1755447045047,-461.8276367,0.00019178,2]
[379948008,1755447045057,-480.0,0.00019178,2]
[379948009,1755447045066,-151.0,0.00019178,2]
[379948010,1755447045076,-480.0,0.00019178,2]
[379948011,1755447045086,-1396.993208,0.00019178,2]
[379948012,1755447045095,-1038.69,0.00019178,2]
[379948013,1755447045104,-562.138195,0.00019178,2]
[379948014,1755447045114,-460.0,0.00019178,2]
[379948015,1755447045123,-460.0,0.00019178,2]
[379948016,1755447045132,-460.0,0.00019178,2]
[379948017,1755447045142,-461.14689207,0.00019178,2]
[379948018,1755447045151,-562.138195,0.00019178,2]
[379948019,1755447045160,-465.12132,0.00019178,2]
[379948020,1755447045169,-460.0,0.00019178,2]
[379948021,1755447045179,-151.0,0.00019178,2]
[379948022,1755447045188,-460.0,0.00019178,2]
[379948023,1755447045199,-460.89228693,0.00019178,2]
[379948025,1755447045208,-480.0,0.00019178,2]
[379948026,1755447045217,-460.0,0.00019178,2]
[379948027,1755447045226,-463.37426668,0.00019178,2]
[379948028,1755447045236,-480.0,0.00019178,2]
[379948030,1755447045245,-151.0,0.00019178,2]
[379948031,1755447045254,-460.0,0.00019178,2]
[379948032,1755447045264,-460.0,0.00019178,2]
[379948033,1755447045273,-195.16371471,0.00019178,2]
[379948034,1755447045283,-460.0,0.00019178,2]
[379948035,1755447045293,-460.0,0.00019178,2]
[379948036,1755447045309,-464.97454503,0.00019178,2]
[379948037,1755447045319,-460.0,0.00019178,2]
[379948038,1755447045328,-460.60923691,0.00019178,2]
[379948040,1755447045341,-460.0,0.00019178,2]
[379948041,1755447045357,-467.39990837,0.00019178,2]
[379948043,1755447045366,-460.0,0.00019178,2]
[379948044,1755447045376,-480.0,0.00019178,2]
[379948045,1755447045386,-460.0,0.00019178,2]
[379948046,1755447045395,-480.0,0.00019178,2]
[379948047,1755447045405,-503.33187321,0.00019178,2]
[379948049,1755447045414,-460.0,0.00019178,2]
[379948050,1755447045424,-4225.92,0.00019178,2]
[379948051,1755447045433,-500.0,0.00019178,2]
[379948053,1755447045442,-500.0,0.00019178,2]
[379948055,1755447045451,-502.52859319,0.00019178,2]
[379948057,1755447045461,-151.56193,0.00019178,2]
[379948060,1755447045470,-480.0,0.00019178,2]
[379948063,1755447045479,-601.18,0.00019178,2]
[379948065,1755447045489,-1139.88,0.00019178,2]
[379948067,1755447045500,-460.0,0.00019178,2]
[379948069,1755447045509,-460.0,0.00019178,2]
[379948071,1755447045518,-480.0,0.00019178,2]
[379948073,1755447045528,-480.0,0.00019178,2]
[379948076,1755447045538,-460.0,0.00019178,2]
[379948078,1755447045547,-151.0,0.00019178,2]
[379948080,1755447045556,-500.0,0.00019178,2]
[379948081,1755447045565,-666.0,0.00019178,2]
[379948083,1755447045575,-1035.55877314,0.0001921,2]
[379948085,1755447045584,-151.0,0.00019229,2]
[379948087,1755447045594,-245.550855,0.00019229,2]
[379948089,1755447045603,-151.0,0.00019229,2]
[379948091,1755447045613,-151.0,0.00019229,2]
[379948093,1755447045623,-151.0,0.00019229,2]
[379948095,1755447045632,-151.0,0.00019229,2]
[379948097,1755447045641,-245.550855,0.00019229,2]
[379948099,1755447045651,-151.0,0.00019229,2]
[379948101,1755447045660,-239.274423,0.00019229,2]
[379948103,1755447045670,-239.274423,0.00019229,2]
[379948105,1755447045679,-151.0,0.00019229,2]
[379948107,1755447045689,-151.809288,0.00019229,2]
[379948109,1755447045698,-151.0,0.00019229,2]
[379948111,1755447045707,-151.0,0.00019229,2]
[379948113,1755447045717,-151.0,0.00019229,2]
[379948115,1755447045726,-151.0,0.00019229,2]
[379948116,1755447045735,-714.199505,0.00019229,2]
[379948118,1755447045745,-714.199505,0.00019229,2]
[379948120,1755447045755,-151.0,0.00019229,2]
[379948122,1755447045764,-1000.0,0.00019229,2]
[379948124,1755447045774,-1000.0,0.00019229,2]
[379948126,1755447045783,-1000.0,0.00019229,2]
[379948127,1755447045793,-1000.0,0.00019229,2]
[379948128,1755447045803,-895.84278253,0.00019229,2]
[379948129,1755447045812,-151.0,0.00019229,2]
[379948130,1755447045822,-185.797294,0.00019229,2]
[379948132,1755447045832,-185.797294,0.00019229,2]
[379948134,1755447045843,-151.0,0.00019229,2]
[379948136,1755447045853,-151.0,0.00019229,2]
[379948138,1755447045863,-4194.06,0.00019229,2]
[379948140,1755447045873,-4194.06,0.00019229,2]
[379948143,1755447045901,-4194.06,0.00019229,2]
[379948144,1755447045937,-4194.06,0.00019229,2]
[379948147,1755447045963,-4194.06,0.00019229,2]
[379948148,1755447045973,-4194.06,0.00019229,2]
[379948150,1755447045983,-4194.06,0.00019229,2]
[379948152,1755447045993,-4194.06,0.00019229,2]
[379948154,1755447046005,-4194.06,0.00019229,2]
[379948156,1755447046015,-500.0,0.00019229,2]
[379948157,1755447046024,-500.0,0.00019229,2]
[379948158,1755447046034,-500.0,0.00019229,2]
[379948159,1755447046043,-500.0,0.00019229,2]
[379948161,1755447046053,-500.0,0.00019229,2]
[379948163,1755447046063,-500.0,0.00019229,2]
[379948165,1755447046073,-500.0,0.00019229,2]
[379948167,1755447046087,-500.0,0.00019229,2]
[379948169,1755447046096,-151.0,0.00019229,2]
[379948171,1755447046104,-151.0,0.00019229,2]
[379948172,1755447046114,-562.138195,0.00019229,2]
[379948174,1755447046123,-562.138195,0.00019229,2]
[379948175,1755447046133,-151.0,0.00019229,2]
[379948176,1755447046142,-151.0,0.00019229,2]
[379948177,1755447046152,-500.0,0.00019236,2]
[379948178,1755447046162,-151.0,0.00019236,2]
[379948179,1755447046171,-151.0,0.00019236,2]
[379948180,1755447046181,-151.0,0.00019236,2]
[379948181,1755447046191,-151.0,0.00019236,2]
[379948182,1755447046200,-266.524174,0.00019236,2]
[379948183,1755447046209,-266.524174,0.00019236,2]
[379948184,1755447046218,-1000.0,0.00019236,2]
[379948185,1755447046227,-1000.0,0.00019236,2]
[379948186,1755447046236,-1000.0,0.00019236,2]
[379948187,1755447046247,-1000.0,0.00019236,2]
[379948190,1755447046257,-1000.0,0.00019236,2]
[379948191,1755447046266,-1000.0,0.00019236,2]
[379948192,1755447046275,-1000.0,0.00019236,2]
[379948193,1755447046284,-1000.0,0.00019236,2]
[379948194,1755447046293,-1000.0,0.00019236,2]
[379948195,1755447046303,-1000.0,0.00019236,2]
[379948196,1755447046312,-1000.0,0.00019236,2]
[379948197,1755447046322,-1000.0,0.00019236,2]
[379948198,1755447046331,-1000.0,0.00019236,2]
[379948199,1755447046340,-1000.0,0.00019236,2]
[379948200,1755447046349,-1000.0,0.00019236,2]
[379948201,1755447046359,-1000.0,0.00019236,2]
[379948202,1755447046368,-1000.0,0.00019236,2]
[379948203,1755447046378,-1000.0,0.00019236,2]
[379948204,1755447046387,-1000.0,0.00019236,2]
[379948205,1755447046397,-1000.0,0.00019236,2]
[379948206,1755447046406,-1000.0,0.00019236,2]
[379948207,1755447046415,-1000.0,0.00019236,2]
[379948208,1755447046425,-1000.0,0.00019236,2]
[379948209,1755447046434,-1000.0,0.00019236,2]
[379948210,1755447046443,-1000.0,0.00019236,2]
[379948211,1755447046452,-1000.0,0.00019236,2]
[379948212,1755447046462,-1000.0,0.00019236,2]
[379948213,1755447046471,-1000.0,0.00019236,2]
[379948214,1755447046481,-1000.0,0.00019236,2]
[379948215,1755447046490,-685.725828,0.00019236,2]
[379948216,1755447046500,-1396.993208,0.00019236,2]
[379948217,1755447046510,-1396.993208,0.00019236,2]
[379948218,1755447046519,-4194.06,0.00019259,2]
[379948219,1755447046528,-1035.55877314,0.00019281,2]
[379948220,1755447046538,-151.0,0.00019329,2]
[379948221,1755447046548,-245.550855,0.00019329,2]
[379948222,1755447046557,-151.0,0.00019329,2]
[379948223,1755447046566,-151.0,0.00019329,2]
[379948224,1755447046576,-151.0,0.00019329,2]
[379948225,1755447046586,-151.0,0.00019329,2]
[379948226,1755447046595,-245.550855,0.00019329,2]
[379948227,1755447046605,-239.274423,0.00019329,2]
[379948228,1755447046615,-242.115373,0.00019329,2]
[379948229,1755447046624,-239.274423,0.00019329,2]
[379948230,1755447046633,-151.0,0.00019329,2]
[379948231,1755447046642,-151.0,0.00019329,2]
[379948232,1755447046651,-151.0,0.00019329,2]
[379948233,1755447046661,-223.260295,0.00019329,2]
[379948234,1755447046670,-151.0,0.00019329,2]
[379948235,1755447046680,-714.199505,0.00019329,2]
[379948236,1755447046689,-714.199505,0.00019329,2]
[379948237,1755447046698,-151.0,0.00019329,2]
[379948238,1755447046707,-151.0,0.00019329,2]
[379948239,1755447046716,-151.0,0.00019329,2]
[379948240,1755447046726,-151.0,0.00019329,2]
[379948241,1755447046735,-151.0,0.00019329,2]
[379948242,1755447046744,-151.0,0.00019329,2]
[379948243,1755447046755,-1033.302612,0.00019329,2]
[379948244,1755447046764,-1033.302612,0.00019329,2]
[379948245,1755447046775,-1033.302612,0.00019329,2]
[379948246,1755447046784,-1033.302612,0.00019329,2]
[379948247,1755447046794,-151.0,0.00019329,2]
[379948248,1755447046804,-151.0,0.00019329,2]
[379948249,1755447046813,-151.0,0.00019329,2]
[379948250,1755447046822,-151.0,0.00019329,2]
[379948251,1755447046832,-151.0,0.00019329,2]
[379948252,1755447046841,-151.0,0.00019329,2]
[379948253,1755447046851,-151.0,0.00019329,2]
[379948254,1755447046861,-151.0,0.00019329,2]
[379948255,1755447046870,-151.0,0.00019329,2]
[379948256,1755447046880,-151.0,0.00019329,2]
[379948257,1755447046889,-151.0,0.00019329,2]
[379948258,1755447046899,-185.797294,0.00019329,2]
[379948259,1755447046909,-185.797294,0.00019329,2]
[379948260,1755447046919,-165.031109,0.00019329,2]
[379948261,1755447046928,-151.0,0.00019329,2]
[379948262,1755447046937,-151.0,0.00019329,2]
[379948263,1755447046951,-1700.550371,0.00019329,2]
[379948264,1755447046960,-151.0,0.00019329,2]
[379948265,1755447046970,-1700.550371,0.00019329,2]
[379948266,1755447046979,-1700.550371,0.00019329,2]
[379948267,1755447046990,-1700.550371,0.00019329,2]
[379948268,1755447046999,-151.0,0.00019329,2]
[379948269,1755447047008,-151.0,0.00019329,2]
[379948270,1755447047018,-4194.06,0.00019329,2]
[379948271,1755447047029,-4194.06,0.00019329,2]
[379948272,1755447047038,-162.296285,0.00019329,2]
[379948273,1755447047047,-162.296285,0.00019329,2]
[379948274,1755447047057,-162.296285,0.00019329,2]
[379948275,1755447047066,-162.296285,0.00019329,2]
[379948276,1755447047075,-151.0,0.00019329,2]
[379948277,1755447047085,-158.560395,0.00019329,2]
[379948278,1755447047094,-500.0,0.00019329,2]
[379948279,1755447047103,-500.0,0.00019329,2]
[379948280,1755447047113,-192.302906,0.00019329,2]
[379948281,1755447047123,-192.302906,0.00019329,2]
[379948282,1755447047133,-192.302906,0.00019329,2]
[379948283,1755447047145,-192.302906,0.00019329,2]
[379948284,1755447047154,-225.638699,0.00019329,2]
[379948285,1755447047164,-225.638699,0.00019329,2]
[379948286,1755447047173,-196.95185,0.00019329,2]
[379948287,1755447047183,-196.95185,0.00019329,2]
[379948288,1755447047192,-151.0,0.00019329,2]
[379948289,1755447047201,-151.0,0.00019329,2]
[379948290,1755447047210,-196.95185,0.00019329,2]
[379948291,1755447047220,-196.95185,0.00019329,2]
[379948292,1755447047229,-151.0,0.00019329,2]
[379948293,1755447047239,-203.732008,0.00019329,2]
[379948294,1755447047248,-225.638699,0.00019329,2]
[379948295,1755447047373,-225.638699,0.00019329,2]
[379948296,1755447047383,-151.0,0.00019329,2]
[379948297,1755447047392,-151.0,0.00019329,2]
[379948298,1755447047401,-151.0,0.00019329,2]
[379948299,1755447047410,-247.1896,0.00019329,2]
[379948300,1755447047419,-151.0,0.00019329,2]
[379948301,1755447047429,-151.0,0.00019329,2]
[379948302,1755447047438,-151.0,0.00019329,2]
[379948303,1755447047447,-151.0,0.00019329,2]
[379948304,1755447047457,-266.524174,0.00019329,2]
[379948305,1755447047466,-266.524174,0.00019329,2]
[379948306,1755447047476,-151.0,0.00019329,2]
[379948307,1755447047485,-1396.993208,0.00019329,2]
[379948308,1755447047495,-151.0,0.00019329,2]
[379948309,1755447047504,-1396.993208,0.00019329,2]
[379948310,1755447047514,-562.138195,0.00019329,2]
[379948311,1755447047523,-562.138195,0.00019329,2]
[379948312,1755447047532,-259.054699,0.00019329,2]
[379948313,1755447047542,-151.0,0.00019329,2]
[379948314,1755447047551,-4884.2845529,0.00019329,2]
[379948315,1755447047560,-100000.0,0.00019329,2]
[379948316,1755447047570,-1171.64785863,0.00019331,2]
[379948317,1755447047579,-1035.55877314,0.00019352,2]
[379948318,1755447047588,-189.21,0.0001939,2]
[379948319,1755447047598,-4194.06,0.00019451,2]
[379948320,1755447047607,-500.0,0.00019451,2]
[379948321,1755447047617,-500.0,0.00019451,2]
[379948322,1755447047626,-480.0,0.00019451,2]
[379948323,1755447047635,-257.06047334,0.00019452,2]
[379948324,1755447047645,-151.0,0.00019452,2]
[379948325,1755447047654,-261.71480021,0.00019452,2]
[379948326,1755447047663,-500.0,0.00019452,2]
[379948327,1755447047674,-151.0,0.00019452,2]
[379948328,1755447047684,-151.0,0.00019452,2]
[379948329,1755447047693,-1721.0,0.00019452,2]
[379948330,1755447047703,-151.0,0.00019452,2]
[379948331,1755447047714,-151.0,0.00019452,2]
[379948332,1755447047723,-151.0,0.00019452,2]
[379948333,1755447047732,-151.0,0.00019452,2]
[379948334,1755447047741,-500.0,0.00019452,2]
[379948335,1755447047751,-480.0,0.00019452,2]
[379948336,1755447047760,-480.0,0.00019452,2]
[379948337,1755447047769,-192.23036364,0.00019452,2]
[379948338,1755447047779,-598.32,0.00019452,2]
[379948339,1755447047788,-480.0,0.00019452,2]
[379948340,1755447047797,-497.07,0.00019452,2]
[379948341,1755447047807,-262.73,0.00019452,2]
[379948342,1755447047816,-460.0,0.00019452,2]
[379948343,1755447047825,-480.0,0.00019452,2]
[379948344,1755447047834,-460.0,0.00019452,2]
[379948345,1755447047844,-480.0,0.00019452,2]
[379948346,1755447047853,-480.0,0.00019452,2]
[379948347,1755447047862,-480.0,0.00019452,2]
[379948348,1755447047871,-480.0,0.00019452,2]
[379948349,1755447047880,-480.0,0.00019452,2]
[379948350,1755447047890,-480.0,0.00019452,2]
[379948351,1755447047899,-480.0,0.00019452,2]
[379948352,1755447047909,-480.0,0.00019452,2]
[379948353,1755447047919,-480.0,0.00019452,2]
[379948354,1755447047928,-2798.98,0.00019452,2]
[379948355,1755447047937,-480.0,0.00019452,2]
[379948356,1755447047950,-480.0,0.00019452,2]
[379948357,1755447047960,-430.71,0.00019452,2]
[379948358,1755447047969,-480.0,0.00019452,2]
[379948359,1755447047979,-480.0,0.00019452,2]
[379948360,1755447047990,-3648.89,0.00019452,2]
[379948361,1755447048000,-480.0,0.00019452,2]
[379948362,1755447048011,-4194.06,0.00019452,2]
[379948363,1755447048021,-480.0,0.00019452,2]
[379948364,1755447048031,-480.0,0.00019452,2]
[379948365,1755447048042,-480.0,0.00019452,2]
[379948366,1755447048052,-480.0,0.00019452,2]
[379948367,1755447048061,-480.0,0.00019452,2]
[379948368,1755447048071,-480.0,0.00019452,2]
[379948369,1755447048082,-480.0,0.00019452,2]
[379948370,1755447048092,-480.0,0.00019452,2]
[379948371,1755447048102,-460.0,0.00019452,2]
[379948372,1755447048112,-153.28,0.00019452,2]
[379948373,1755447048122,-480.0,0.00019452,2]
[379948374,1755447048132,-557.83,0.00019452,2]
[379948375,1755447048142,-480.0,0.00019452,2]
[379948376,1755447048152,-2707.54,0.00019452,2]
[379948378,1755447048161,-999.75,0.00019452,2]
[379948380,1755447048171,-480.0,0.00019452,2]
[379948382,1755447048180,-588.85,0.00019452,2]
[379948384,1755447048191,-512.61,0.00019452,2]
[379948385,1755447048200,-2221.98,0.00019452,2]
[379948387,1755447048210,-329.64,0.00019452,2]
[379948389,1755447048219,-480.0,0.00019452,2]